[Event "Titled Tuesday Blitz July 4 Late 2023"]
[White "Abduzhaparov"]
[Black "Ambartsumova, Karina"]
[BlackFideId "4166299"]
[WhiteElo "2359"]
[BlackElo "2540"]
[Result "0-1"]
[Round "4"]
[TimeControl "180+2"]
[Date "2023.07.04"]
[WhiteClock "0:00:05"]
[BlackClock "0:00:13"]
[Board "115"]

1. Nf3 {[%clk 0:03:00]}  Nf6 {[%clk 0:02:59]} 2. c4 {[%clk 0:03:01]}  e6 {[%clk 0:02:58]} 3. g3 {[%clk 0:03:01]}  d5 {[%clk 0:02:56]} 4. Bg2 {[%clk 0:03:02]}  dxc4 {[%clk 0:02:56]} 5. Qa4+ {[%clk 0:03:01]}  c6 {[%clk 0:02:56]} 6. Qxc4 {[%clk 0:03:01]}  b5 {[%clk 0:02:57]} 7. Qb3 {[%clk 0:03:00]}  Bb7 {[%clk 0:02:56]} 8. a4 {[%clk 0:02:59]}  a6 {[%clk 0:02:54]} 9. O-O {[%clk 0:02:59]}  Nbd7 {[%clk 0:02:54]} 10. d4 {[%clk 0:02:59]}  Be7 {[%clk 0:02:50]} 11. Bf4 {[%clk 0:02:58]}  O-O {[%clk 0:02:48]} 12. Rc1 {[%clk 0:02:57]}  c5 {[%clk 0:02:29]} 13. axb5 {[%clk 0:02:51]}  Bd5 {[%clk 0:02:29]} 14. Qd1 {[%clk 0:02:27]}  axb5 {[%clk 0:02:27]} 15. Rxa8 {[%clk 0:02:28]}  Qxa8 {[%clk 0:02:27]} 16. Nc3 {[%clk 0:02:28]}  Bc6 {[%clk 0:02:20]} 17. dxc5 {[%clk 0:02:18]}  Bxc5 {[%clk 0:02:20]} 18. Qb3 {[%clk 0:01:46]}  b4 {[%clk 0:02:10]} 19. Nd1 {[%clk 0:01:44]}  Bd5 {[%clk 0:02:02]} 20. Qd3 {[%clk 0:01:39]}  Rc8 {[%clk 0:01:52]} 21. Ne1 {[%clk 0:01:26]}  Bxg2 {[%clk 0:01:24]} 22. Nxg2 {[%clk 0:01:27]}  Nd5 {[%clk 0:01:24]} 23. e4 {[%clk 0:01:17]}  Nxf4 {[%clk 0:01:20]} 24. Nxf4 {[%clk 0:01:18]}  Ne5 {[%clk 0:01:19]} 25. Qb1 {[%clk 0:00:55]}  Bd4 {[%clk 0:00:43]} 26. Rxc8+ {[%clk 0:00:41]}  Qxc8 {[%clk 0:00:44]} 27. Nd3 {[%clk 0:00:38]}  Nf3+ {[%clk 0:00:41]} 28. Kg2 {[%clk 0:00:38]}  Nd2 {[%clk 0:00:40]} 29. Qc1 {[%clk 0:00:23]}  Qxc1 {[%clk 0:00:36]} 30. Nxc1 {[%clk 0:00:24]}  Nxe4 {[%clk 0:00:33]} 31. Nd3 {[%clk 0:00:24]}  b3 {[%clk 0:00:29]} 32. Nc1 {[%clk 0:00:24]}  Nc5 {[%clk 0:00:27]} 33. Kf3 {[%clk 0:00:20]}  f5 {[%clk 0:00:26]} 34. Ke2 {[%clk 0:00:20]}  Kf7 {[%clk 0:00:27]} 35. Nd3 {[%clk 0:00:18]}  Na4 {[%clk 0:00:21]} 36. Nc1 {[%clk 0:00:12]}  Nxb2 {[%clk 0:00:19]} 37. Nxb3 {[%clk 0:00:12]}  Nxd1 {[%clk 0:00:18]} 38. Nxd4 {[%clk 0:00:11]}  Nc3+ {[%clk 0:00:18]} 39. Kf3 {[%clk 0:00:11]}  Ne4 {[%clk 0:00:17]} 40. Kg2 {[%clk 0:00:11]}  Kf6 {[%clk 0:00:18]} 41. f4 {[%clk 0:00:10]}  h6 {[%clk 0:00:15]} 42. h4 {[%clk 0:00:09]}  Ke7 {[%clk 0:00:13]} 43. Kf3 {[%clk 0:00:09]}  Nf6 {[%clk 0:00:12]} 44. Nc6+ {[%clk 0:00:08]}  Kd6 {[%clk 0:00:12]} 45. Ne5 {[%clk 0:00:09]}  Nd7 {[%clk 0:00:10]} 46. Nd3 {[%clk 0:00:07]}  Kd5 {[%clk 0:00:10]} 47. Ke3 {[%clk 0:00:07]}  Nc5 {[%clk 0:00:08]} 48. Nb4+ {[%clk 0:00:07]}  Kd6 {[%clk 0:00:08]} 49. Nc2 {[%clk 0:00:06]}  Ne4 {[%clk 0:00:08]} 50. Kf3 {[%clk 0:00:05]}  Kd5 {[%clk 0:00:08]} 51. Ne3+ {[%clk 0:00:05]}  Kd4 {[%clk 0:00:08]} 52. g4 {[%clk 0:00:04]}  Nd6 {[%clk 0:00:07]} 53. g5 {[%clk 0:00:02]}  h5 {[%clk 0:00:07]} 54. Nf1 {[%clk 0:00:02]}  g6 {[%clk 0:00:07]} 55. Nd2 {[%clk 0:00:01]}  e5 {[%clk 0:00:06]} 56. Nb3+ {[%clk 0:00:02]}  Kd5 {[%clk 0:00:07]} 57. fxe5 {[%clk 0:00:03]}  Kxe5 {[%clk 0:00:07]} 58. Nc5 {[%clk 0:00:03]}  Ne4 {[%clk 0:00:05]} 59. Nd7+ {[%clk 0:00:03]}  Ke6 {[%clk 0:00:05]} 60. Nf8+ {[%clk 0:00:04]}  Kf7 {[%clk 0:00:06]} 61. Nd7 {[%clk 0:00:05]}  Nd6 {[%clk 0:00:06]} 62. Ne5+ {[%clk 0:00:05]}  Kg7 {[%clk 0:00:06]} 63. Kf4 {[%clk 0:00:05]}  Nf7 {[%clk 0:00:06]} 64. Nd7 {[%clk 0:00:05]}  Nd8 {[%clk 0:00:06]} 65. Nc5 {[%clk 0:00:06]}  Nc6 {[%clk 0:00:06]} 66. Ne6+ {[%clk 0:00:06]}  Kf7 {[%clk 0:00:06]} 67. Nc7 {[%clk 0:00:07]}  Nd8 {[%clk 0:00:05]} 68. Nd5 {[%clk 0:00:06]}  Ne6+ {[%clk 0:00:06]} 69. Kf3 {[%clk 0:00:06]}  Nd4+ {[%clk 0:00:06]} 70. Kf4 {[%clk 0:00:07]}  Ne2+ {[%clk 0:00:06]} 71. Ke5 {[%clk 0:00:06]}  Ng3 {[%clk 0:00:04]} 72. Kf4 {[%clk 0:00:06]}  Ne4 {[%clk 0:00:04]} 73. Ke5 {[%clk 0:00:06]}  Nc5 {[%clk 0:00:03]} 74. Kf4 {[%clk 0:00:05]}  Nd3+ {[%clk 0:00:04]} 75. Ke3 {[%clk 0:00:05]}  Ne5 {[%clk 0:00:04]} 76. Kf4 {[%clk 0:00:06]}  Ng4 {[%clk 0:00:04]} 77. Nc7 {[%clk 0:00:05]}  Ke7 {[%clk 0:00:03]} 78. Nd5+ {[%clk 0:00:05]}  Kd6 {[%clk 0:00:04]} 79. Nc3 {[%clk 0:00:03]}  Nf2 {[%clk 0:00:03]} 80. Nb5+ {[%clk 0:00:03]}  Ke7 {[%clk 0:00:03]} 81. Nc3 {[%clk 0:00:03]}  Nd3+ {[%clk 0:00:03]} 82. Ke3 {[%clk 0:00:03]}  Ne5 {[%clk 0:00:03]} 83. Kf4 {[%clk 0:00:03]}  Nf7 {[%clk 0:00:03]} 84. Nd5+ {[%clk 0:00:03]}  Ke6 {[%clk 0:00:03]} 85. Nc7+ {[%clk 0:00:04]}  Kd7 {[%clk 0:00:04]} 86. Nd5 {[%clk 0:00:04]}  Kd6 {[%clk 0:00:04]} 87. Nc3 {[%clk 0:00:04]}  Nd8 {[%clk 0:00:04]} 88. Nb5+ {[%clk 0:00:04]}  Kd5 {[%clk 0:00:05]} 89. Nc3+ {[%clk 0:00:04]}  Kd4 {[%clk 0:00:05]} 90. Nb5+ {[%clk 0:00:05]}  Kc5 {[%clk 0:00:05]} 91. Nc3 {[%clk 0:00:05]}  Kc4 {[%clk 0:00:06]} 92. Ne2 {[%clk 0:00:04]}  Kd3 {[%clk 0:00:05]} 93. Ng3 {[%clk 0:00:04]}  Kd4 {[%clk 0:00:05]} 94. Nxh5 {[%clk 0:00:04]}  Ne6+ {[%clk 0:00:04]} 95. Kf3 {[%clk 0:00:04]}  gxh5 {[%clk 0:00:04]} 96. g6 {[%clk 0:00:04]}  Ke5 {[%clk 0:00:05]} 97. Ke3 {[%clk 0:00:04]}  Ng7 {[%clk 0:00:06]} 98. Kf3 {[%clk 0:00:05]}  Kf6 {[%clk 0:00:06]} 99. Kf4 {[%clk 0:00:05]}  Kxg6 {[%clk 0:00:07]} 100. Ke5 {[%clk 0:00:06]}  Ne8 {[%clk 0:00:07]} 101. Kf4 {[%clk 0:00:06]}  Nf6 {[%clk 0:00:08]} 102. Ke5 {[%clk 0:00:06]}  Ng4+ {[%clk 0:00:09]} 103. Kf4 {[%clk 0:00:07]}  Kf6 {[%clk 0:00:10]} 104. Kf3 {[%clk 0:00:07]}  Ke5 {[%clk 0:00:11]} 105. Kg3 {[%clk 0:00:07]}  f4+ {[%clk 0:00:11]} 106. Kf3 {[%clk 0:00:08]}  Kf5 {[%clk 0:00:12]} 107. Kg2 {[%clk 0:00:08]}  Ke4 {[%clk 0:00:12]} 108. Kh3 {[%clk 0:00:09]}  f3 {[%clk 0:00:12]} 109. Kg3 {[%clk 0:00:09]}  Ke3 {[%clk 0:00:12]} 110. Kh3 {[%clk 0:00:09]}  Ne5 {[%clk 0:00:13]} 111. Kg3 {[%clk 0:00:09]}  f2 {[%clk 0:00:13]} 112. Kg2 {[%clk 0:00:09]}  Ke2 {[%clk 0:00:14]} 113. Kg3 {[%clk 0:00:10]}  f1=Q {[%clk 0:00:13]} 114. Kh2 {[%clk 0:00:05]}  Qf4+ {[%clk 0:00:13]} 0-1


[Site "https://www.chess.com"]

[Event "Titled Tuesday Blitz July 4 Late 2023"]
[White "Bazilius, Augustinas"]
[Black "Moral Garcia, Serafin"]
[WhiteFideId "12832251"]
[BlackFideId "2201925"]
[WhiteElo "2354"]
[BlackElo "2527"]
[Result "1-0"]
[Round "4"]
[TimeControl "180+2"]
[Date "2023.07.04"]
[WhiteClock "0:00:03"]
[BlackClock "0:01:01"]
[Board "118"]

1. d4 {[%clk 0:02:54]}  Nf6 {[%clk 0:02:56]} 2. c4 {[%clk 0:02:55]}  g6 {[%clk 0:02:56]} 3. Nc3 {[%clk 0:02:54]}  d5 {[%clk 0:02:56]} 4. Nf3 {[%clk 0:02:53]}  Bg7 {[%clk 0:02:55]} 5. h4 {[%clk 0:02:51]}  dxc4 {[%clk 0:02:54]} 6. e4 {[%clk 0:02:48]}  Bg4 {[%clk 0:02:53]} 7. Bxc4 {[%clk 0:02:42]}  c5 {[%clk 0:02:53]} 8. Bxf7+ {[%clk 0:02:26]}  Kxf7 {[%clk 0:02:48]} 9. Ne5+ {[%clk 0:02:26]}  Ke8 {[%clk 0:02:49]} 10. Nxg4 {[%clk 0:02:27]}  Qxd4 {[%clk 0:02:48]} 11. Nxf6+ {[%clk 0:01:55]}  Bxf6 {[%clk 0:02:46]} 12. Be3 {[%clk 0:01:55]}  Qxd1+ {[%clk 0:02:44]} 13. Rxd1 {[%clk 0:01:55]}  b6 {[%clk 0:02:44]} 14. Nd5 {[%clk 0:01:47]}  Na6 {[%clk 0:02:42]} 15. Rd3 {[%clk 0:01:39]}  Kf7 {[%clk 0:02:21]} 16. O-O {[%clk 0:01:06]}  Bxb2 {[%clk 0:02:11]} 17. f4 {[%clk 0:01:02]}  e6 {[%clk 0:02:02]} 18. Nc7 {[%clk 0:00:54]}  Nxc7 {[%clk 0:02:00]} 19. Rd7+ {[%clk 0:00:54]}  Kf6 {[%clk 0:01:59]} 20. Rxc7 {[%clk 0:00:51]}  Bd4 {[%clk 0:01:54]} 21. Bxd4+ {[%clk 0:00:39]}  cxd4 {[%clk 0:01:54]} 22. g4 {[%clk 0:00:40]}  e5 {[%clk 0:01:51]} 23. g5+ {[%clk 0:00:29]}  Ke6 {[%clk 0:01:51]} 24. f5+ {[%clk 0:00:30]}  gxf5 {[%clk 0:01:49]} 25. exf5+ {[%clk 0:00:29]}  Kd5 {[%clk 0:01:48]} 26. f6 {[%clk 0:00:27]}  e4 {[%clk 0:01:37]} 27. Rf5+ {[%clk 0:00:16]}  Ke6 {[%clk 0:01:35]} 28. Rf4 {[%clk 0:00:16]}  Ke5 {[%clk 0:01:36]} 29. Rg4 {[%clk 0:00:09]}  Rae8 {[%clk 0:01:34]} 30. f7 {[%clk 0:00:05]}  Re6 {[%clk 0:01:33]} 31. h5 {[%clk 0:00:05]}  d3 {[%clk 0:01:29]} 32. g6 {[%clk 0:00:05]}  hxg6 {[%clk 0:01:24]} 33. hxg6 {[%clk 0:00:06]}  Rd8 {[%clk 0:01:20]} 34. Rg2 {[%clk 0:00:02]}  Kf6 {[%clk 0:01:19]} 35. g7 {[%clk 0:00:01]}  d2 {[%clk 0:01:04]} 36. Rxd2 {[%clk 0:00:01]}  Rxd2 {[%clk 0:01:04]} 37. g8=Q {[%clk 0:00:02]}  Rd1+ {[%clk 0:01:04]} 38. Kg2 {[%clk 0:00:02]}  Ke5 {[%clk 0:01:04]} 39. f8=Q {[%clk 0:00:02]}  e3 {[%clk 0:01:03]} 40. Qxe6+ {[%clk 0:00:02]}  Kxe6 {[%clk 0:01:01]} 41. Qe8+ {[%clk 0:00:03]} 1-0


[Site "https://www.chess.com"]

[Event "Titled Tuesday Blitz July 4 Late 2023"]
[White "Aggelis, Nikolaos"]
[Black "Svicevic, Rastko"]
[WhiteFideId "4213220"]
[BlackFideId "916315"]
[WhiteElo "2525"]
[BlackElo "2356"]
[Result "1/2-1/2"]
[Round "4"]
[TimeControl "180+2"]
[Date "2023.07.04"]
[WhiteClock "0:00:02"]
[BlackClock "0:00:00"]
[Board "119"]

1. c4 {[%clk 0:03:00]}  c6 {[%clk 0:02:58]} 2. b3 {[%clk 0:02:59]}  d5 {[%clk 0:02:58]} 3. d3 {[%clk 0:02:59]}  d4 {[%clk 0:02:52]} 4. Nf3 {[%clk 0:02:54]}  Bg4 {[%clk 0:02:41]} 5. Nbd2 {[%clk 0:02:44]}  c5 {[%clk 0:02:38]} 6. b4 {[%clk 0:02:35]}  e6 {[%clk 0:02:33]} 7. Bb2 {[%clk 0:02:18]}  Nc6 {[%clk 0:02:28]} 8. b5 {[%clk 0:02:06]}  Nb8 {[%clk 0:02:28]} 9. g3 {[%clk 0:02:03]}  a6 {[%clk 0:02:18]} 10. a4 {[%clk 0:02:01]}  Nf6 {[%clk 0:02:07]} 11. Bg2 {[%clk 0:02:00]}  Bd6 {[%clk 0:02:05]} 12. O-O {[%clk 0:01:58]}  O-O {[%clk 0:02:04]} 13. Qc2 {[%clk 0:01:48]}  e5 {[%clk 0:01:59]} 14. Rfe1 {[%clk 0:01:41]}  Qd7 {[%clk 0:01:49]} 15. Nh4 {[%clk 0:01:33]}  Bh3 {[%clk 0:01:41]} 16. e3 {[%clk 0:01:21]}  Bxg2 {[%clk 0:01:39]} 17. Nxg2 {[%clk 0:01:21]}  b6 {[%clk 0:01:23]} 18. exd4 {[%clk 0:01:19]}  exd4 {[%clk 0:01:17]} 19. Ne4 {[%clk 0:01:16]}  Nxe4 {[%clk 0:00:59]} 20. Rxe4 {[%clk 0:01:17]}  axb5 {[%clk 0:00:58]} 21. axb5 {[%clk 0:01:17]}  Rxa1+ {[%clk 0:00:55]} 22. Bxa1 {[%clk 0:01:18]}  Re8 {[%clk 0:00:49]} 23. Qe2 {[%clk 0:01:15]}  Rxe4 {[%clk 0:00:47]} 24. Qxe4 {[%clk 0:01:16]}  Qe7 {[%clk 0:00:38]} 25. f3 {[%clk 0:00:58]}  Qxe4 {[%clk 0:00:36]} 26. fxe4 {[%clk 0:00:58]}  Nd7 {[%clk 0:00:36]} 27. Kf2 {[%clk 0:00:38]}  g5 {[%clk 0:00:34]} 28. Bb2 {[%clk 0:00:37]}  f6 {[%clk 0:00:30]} 29. Bc1 {[%clk 0:00:36]}  Ne5 {[%clk 0:00:25]} 30. Ke2 {[%clk 0:00:35]}  Ng4 {[%clk 0:00:22]} 31. h3 {[%clk 0:00:35]}  Ne5 {[%clk 0:00:19]} 32. g4 {[%clk 0:00:35]}  Kf7 {[%clk 0:00:18]} 33. Bd2 {[%clk 0:00:33]}  Ng6 {[%clk 0:00:18]} 34. Kf3 {[%clk 0:00:30]}  Ke6 {[%clk 0:00:19]} 35. Be1 {[%clk 0:00:28]}  Ne5+ {[%clk 0:00:18]} 36. Ke2 {[%clk 0:00:27]}  Ng6 {[%clk 0:00:18]} 37. Bd2 {[%clk 0:00:24]}  h6 {[%clk 0:00:17]} 38. Bc1 {[%clk 0:00:23]}  Ne5 {[%clk 0:00:17]} 39. Bd2 {[%clk 0:00:22]}  Nd7 {[%clk 0:00:15]} 40. Ne1 {[%clk 0:00:22]}  Nf8 {[%clk 0:00:11]} 41. Nf3 {[%clk 0:00:22]}  Ng6 {[%clk 0:00:11]} 42. Bc1 {[%clk 0:00:21]}  Bf4 {[%clk 0:00:11]} 43. Bd2 {[%clk 0:00:16]}  Bxd2 {[%clk 0:00:09]} 44. Kxd2 {[%clk 0:00:16]}  Nf4 {[%clk 0:00:10]} 45. Ng1 {[%clk 0:00:15]}  h5 {[%clk 0:00:04]} 46. Kc2 {[%clk 0:00:16]}  hxg4 {[%clk 0:00:01]} 47. hxg4 {[%clk 0:00:17]}  Ng2 {[%clk 0:00:01]} 48. Nf3 {[%clk 0:00:09]}  Ne3+ {[%clk 0:00:02]} 49. Kd2 {[%clk 0:00:08]}  Nxg4 {[%clk 0:00:03]} 50. Ke2 {[%clk 0:00:07]}  Ne5 {[%clk 0:00:03]} 51. Ne1 {[%clk 0:00:07]}  f5 {[%clk 0:00:03]} 52. exf5+ {[%clk 0:00:05]}  Kxf5 {[%clk 0:00:04]} 53. Kf2 {[%clk 0:00:05]}  Ng6 {[%clk 0:00:03]} 54. Kg3 {[%clk 0:00:05]}  Nf4 {[%clk 0:00:03]} 55. Kf3 {[%clk 0:00:05]}  g4+ {[%clk 0:00:04]} 56. Kg3 {[%clk 0:00:06]}  Kg5 {[%clk 0:00:04]} 57. Kf2 {[%clk 0:00:05]}  Kh4 {[%clk 0:00:05]} 58. Kg1 {[%clk 0:00:04]}  Ne2+ {[%clk 0:00:05]} 59. Kf2 {[%clk 0:00:04]}  Nc1 {[%clk 0:00:05]} 60. Ng2+ {[%clk 0:00:03]}  Kg5 {[%clk 0:00:05]} 61. Ne1 {[%clk 0:00:02]}  Kf5 {[%clk 0:00:05]} 62. Kg3 {[%clk 0:00:03]}  Kg5 {[%clk 0:00:06]} 63. Kg2 {[%clk 0:00:03]}  Kf4 {[%clk 0:00:05]} 64. Kf2 {[%clk 0:00:04]}  g3+ {[%clk 0:00:04]} 65. Kg2 {[%clk 0:00:05]}  Kg4 {[%clk 0:00:04]} 66. Nf3 {[%clk 0:00:05]}  Nxd3 {[%clk 0:00:04]} 67. Nd2 {[%clk 0:00:06]}  Nf4+ {[%clk 0:00:04]} 68. Kf1 {[%clk 0:00:06]}  Nd3 {[%clk 0:00:04]} 69. Ne4 {[%clk 0:00:07]}  Ne5 {[%clk 0:00:04]} 70. Nd6 {[%clk 0:00:07]}  Kf3 {[%clk 0:00:04]} 71. Nf5 {[%clk 0:00:07]}  g2+ {[%clk 0:00:04]} 72. Kg1 {[%clk 0:00:08]}  Ng4 {[%clk 0:00:05]} 73. Nh4+ {[%clk 0:00:08]}  Ke4 {[%clk 0:00:04]} 74. Nxg2 {[%clk 0:00:09]}  Kd3 {[%clk 0:00:05]} 75. Nf4+ {[%clk 0:00:09]}  Kxc4 {[%clk 0:00:05]} 76. Kf1 {[%clk 0:00:10]}  Kxb5 {[%clk 0:00:06]} 77. Ke2 {[%clk 0:00:10]}  Ne3 {[%clk 0:00:05]} 78. Kd3 {[%clk 0:00:11]}  Nf5 {[%clk 0:00:05]} 79. Nd5 {[%clk 0:00:11]}  Nd6 {[%clk 0:00:05]} 80. Nc7+ {[%clk 0:00:11]}  Kc6 {[%clk 0:00:05]} 81. Ne6 {[%clk 0:00:12]}  b5 {[%clk 0:00:05]} 82. Nf4 {[%clk 0:00:11]}  Nf5 {[%clk 0:00:06]} 83. Ke4 {[%clk 0:00:11]}  Ne7 {[%clk 0:00:06]} 84. Ne6 {[%clk 0:00:11]}  b4 {[%clk 0:00:06]} 85. Kd3 {[%clk 0:00:11]}  Kd5 {[%clk 0:00:06]} 86. Nc7+ {[%clk 0:00:12]}  Kc6 {[%clk 0:00:06]} 87. Ne6 {[%clk 0:00:12]}  Nd5 {[%clk 0:00:06]} 88. Kc4 {[%clk 0:00:11]}  Ne3+ {[%clk 0:00:05]} 89. Kd3 {[%clk 0:00:12]}  Kd5 {[%clk 0:00:06]} 90. Nf4+ {[%clk 0:00:11]}  Ke5 {[%clk 0:00:05]} 91. Ng6+ {[%clk 0:00:12]}  Kf5 {[%clk 0:00:04]} 92. Ne7+ {[%clk 0:00:12]}  Ke6 {[%clk 0:00:03]} 93. Nc6 {[%clk 0:00:12]}  Kd6 {[%clk 0:00:03]} 94. Nxb4 {[%clk 0:00:11]}  Nd5 {[%clk 0:00:01]} 95. Nc2 {[%clk 0:00:02]}  Nf4+ {[%clk 0:00:00]} 96. Kc4 {[%clk 0:00:02]} 1/2-1/2


[Site "https://www.chess.com"]

[Event "Titled Tuesday Blitz July 4 Late 2023"]
[White "Seletsky, Grigory"]
[Black "Tan, Ralph"]
[WhiteFideId "14112191"]
[BlackFideId "30966590"]
[WhiteElo "2350"]
[BlackElo "2508"]
[Result "1-0"]
[Round "4"]
[TimeControl "180+2"]
[Date "2023.07.04"]
[WhiteClock "0:01:02"]
[BlackClock "0:00:14"]
[Board "121"]

1. d4 {[%clk 0:02:59]}  Nf6 {[%clk 0:02:55]} 2. Nf3 {[%clk 0:03:00]}  e6 {[%clk 0:02:56]} 3. Bg5 {[%clk 0:03:00]}  d5 {[%clk 0:02:54]} 4. Nbd2 {[%clk 0:03:00]}  Be7 {[%clk 0:02:53]} 5. Bxf6 {[%clk 0:02:57]}  Bxf6 {[%clk 0:02:54]} 6. e4 {[%clk 0:02:56]}  dxe4 {[%clk 0:02:55]} 7. Nxe4 {[%clk 0:02:57]}  O-O {[%clk 0:02:54]} 8. Nxf6+ {[%clk 0:02:46]}  Qxf6 {[%clk 0:02:51]} 9. c3 {[%clk 0:02:47]}  c5 {[%clk 0:02:51]} 10. dxc5 {[%clk 0:02:45]}  Rd8 {[%clk 0:02:48]} 11. Qc2 {[%clk 0:02:25]}  e5 {[%clk 0:02:39]} 12. Bd3 {[%clk 0:02:24]}  g6 {[%clk 0:02:38]} 13. O-O {[%clk 0:02:22]}  Bg4 {[%clk 0:02:35]} 14. Nd2 {[%clk 0:02:21]}  Nc6 {[%clk 0:02:32]} 15. Ne4 {[%clk 0:02:20]}  Qe7 {[%clk 0:02:28]} 16. b4 {[%clk 0:02:19]}  a5 {[%clk 0:02:04]} 17. a3 {[%clk 0:02:15]}  Be6 {[%clk 0:01:59]} 18. Bb5 {[%clk 0:02:05]}  Qc7 {[%clk 0:01:46]} 19. Qe2 {[%clk 0:01:59]}  Ne7 {[%clk 0:01:35]} 20. Nd6 {[%clk 0:01:50]}  Rxd6 {[%clk 0:01:18]} 21. cxd6 {[%clk 0:01:48]}  Qxd6 {[%clk 0:01:19]} 22. Rfd1 {[%clk 0:01:43]}  Qc7 {[%clk 0:01:19]} 23. Rac1 {[%clk 0:01:43]}  Nd5 {[%clk 0:01:16]} 24. Qd2 {[%clk 0:01:36]}  Nf4 {[%clk 0:01:08]} 25. Qd6 {[%clk 0:01:31]}  Qxd6 {[%clk 0:00:54]} 26. Rxd6 {[%clk 0:01:29]}  axb4 {[%clk 0:00:55]} 27. axb4 {[%clk 0:01:27]}  Ra2 {[%clk 0:00:44]} 28. Bf1 {[%clk 0:01:20]}  e4 {[%clk 0:00:36]} 29. Rd4 {[%clk 0:01:08]}  f5 {[%clk 0:00:31]} 30. g3 {[%clk 0:01:06]}  Nd5 {[%clk 0:00:23]} 31. Bc4 {[%clk 0:01:02]}  Nb6 {[%clk 0:00:14]} 32. Bxe6+ {[%clk 0:01:02]} 1-0


[Site "https://www.chess.com"]

[Event "Titled Tuesday Blitz July 4 Late 2023"]
[White "Djabri, Massinas"]
[Black "Poeta, Caio Medeiros"]
[WhiteFideId "7905726"]
[BlackFideId "2142660"]
[WhiteElo "2349"]
[BlackElo "2505"]
[Result "1-0"]
[Round "4"]
[TimeControl "180+2"]
[Date "2023.07.04"]
[WhiteClock "0:00:04"]
[BlackClock "0:00:00"]
[Board "122"]

1. e4 {[%clk 0:02:58]}  c6 {[%clk 0:02:59]} 2. d4 {[%clk 0:02:57]}  d5 {[%clk 0:03:00]} 3. e5 {[%clk 0:02:57]}  c5 {[%clk 0:03:00]} 4. Nf3 {[%clk 0:02:54]}  Nc6 {[%clk 0:02:59]} 5. Bb5 {[%clk 0:02:50]}  Bg4 {[%clk 0:02:58]} 6. h3 {[%clk 0:02:46]}  Bxf3 {[%clk 0:02:56]} 7. Qxf3 {[%clk 0:02:47]}  cxd4 {[%clk 0:02:55]} 8. O-O {[%clk 0:02:44]}  e6 {[%clk 0:02:53]} 9. Nd2 {[%clk 0:02:39]}  a6 {[%clk 0:02:52]} 10. Bxc6+ {[%clk 0:02:34]}  bxc6 {[%clk 0:02:52]} 11. Nb3 {[%clk 0:02:29]}  c5 {[%clk 0:02:52]} 12. c3 {[%clk 0:02:27]}  dxc3 {[%clk 0:02:52]} 13. bxc3 {[%clk 0:02:28]}  Qc7 {[%clk 0:02:47]} 14. Be3 {[%clk 0:02:21]}  c4 {[%clk 0:02:43]} 15. Nd4 {[%clk 0:02:19]}  Ne7 {[%clk 0:02:35]} 16. Qg3 {[%clk 0:02:07]}  Nc6 {[%clk 0:02:34]} 17. Nxc6 {[%clk 0:01:58]}  Qxc6 {[%clk 0:02:35]} 18. Rab1 {[%clk 0:01:57]}  g6 {[%clk 0:02:32]} 19. Rb6 {[%clk 0:01:55]}  Qc7 {[%clk 0:02:31]} 20. Rfb1 {[%clk 0:01:54]}  Bg7 {[%clk 0:02:20]} 21. Rb7 {[%clk 0:01:29]}  Qc8 {[%clk 0:02:12]} 22. Bc1 {[%clk 0:01:06]}  O-O {[%clk 0:02:07]} 23. Ba3 {[%clk 0:01:06]}  Rd8 {[%clk 0:02:06]} 24. Bd6 {[%clk 0:00:59]}  Qc6 {[%clk 0:01:15]} 25. Qf4 {[%clk 0:00:18]}  Rf8 {[%clk 0:01:14]} 26. Rc7 {[%clk 0:00:16]}  Qa4 {[%clk 0:01:01]} 27. Rbb7 {[%clk 0:00:16]}  Kh8 {[%clk 0:00:16]} 28. Rxf7 {[%clk 0:00:08]}  Rxf7 {[%clk 0:00:15]} 29. Qxf7 {[%clk 0:00:09]}  Rg8 {[%clk 0:00:15]} 30. Qxe6 {[%clk 0:00:07]}  Qd1+ {[%clk 0:00:13]} 31. Kh2 {[%clk 0:00:07]}  d4 {[%clk 0:00:12]} 32. Qf7 {[%clk 0:00:06]}  dxc3 {[%clk 0:00:09]} 33. Bf8 {[%clk 0:00:03]}  Bxe5+ {[%clk 0:00:00]} 34. f4 {[%clk 0:00:04]} 1-0


[Site "https://www.chess.com"]

[Event "Titled Tuesday Blitz July 4 Late 2023"]
[White "Cardozo Munar, Carlos Eduardo"]
[Black "Toniutti, Ezio"]
[WhiteFideId "4409477"]
[BlackFideId "113034"]
[WhiteElo "2337"]
[BlackElo "2484"]
[Result "0-1"]
[Round "4"]
[TimeControl "180+2"]
[Date "2023.07.04"]
[WhiteClock "0:00:00"]
[BlackClock "0:00:20"]
[Board "126"]

1. d4 {[%clk 0:03:00]}  d5 {[%clk 0:02:59]} 2. Nf3 {[%clk 0:02:59]}  Nf6 {[%clk 0:02:58]} 3. Bg5 {[%clk 0:02:58]}  Ne4 {[%clk 0:02:58]} 4. Bh4 {[%clk 0:02:57]}  c5 {[%clk 0:02:58]} 5. c3 {[%clk 0:02:52]}  Qb6 {[%clk 0:02:57]} 6. Qc1 {[%clk 0:02:50]}  Nc6 {[%clk 0:02:51]} 7. e3 {[%clk 0:02:50]}  Bf5 {[%clk 0:02:48]} 8. Nbd2 {[%clk 0:02:47]}  e6 {[%clk 0:02:45]} 9. Nxe4 {[%clk 0:02:47]}  Bxe4 {[%clk 0:02:37]} 10. Nd2 {[%clk 0:02:47]}  Bg6 {[%clk 0:02:21]} 11. Be2 {[%clk 0:02:43]}  Bd6 {[%clk 0:02:19]} 12. dxc5 {[%clk 0:02:43]}  Qxc5 {[%clk 0:02:16]} 13. O-O {[%clk 0:02:40]}  O-O {[%clk 0:02:14]} 14. a3 {[%clk 0:02:36]}  Rac8 {[%clk 0:02:07]} 15. Nf3 {[%clk 0:02:33]}  Qb6 {[%clk 0:02:04]} 16. Qd2 {[%clk 0:02:33]}  Na5 {[%clk 0:02:00]} 17. Rad1 {[%clk 0:02:12]}  Nb3 {[%clk 0:01:55]} 18. Qe1 {[%clk 0:02:12]}  Bc2 {[%clk 0:01:52]} 19. Bd3 {[%clk 0:01:54]}  Bxd1 {[%clk 0:01:49]} 20. Qxd1 {[%clk 0:01:55]}  Nc5 {[%clk 0:01:49]} 21. Bxh7+ {[%clk 0:01:52]}  Kxh7 {[%clk 0:01:45]} 22. Ng5+ {[%clk 0:01:52]}  Kg6 {[%clk 0:01:40]} 23. Qg4 {[%clk 0:01:53]}  f5 {[%clk 0:01:37]} 24. Qf3 {[%clk 0:01:45]}  Rh8 {[%clk 0:01:34]} 25. g3 {[%clk 0:01:32]}  Be7 {[%clk 0:01:30]} 26. b4 {[%clk 0:00:55]}  Ne4 {[%clk 0:01:20]} 27. Nh3 {[%clk 0:00:37]}  Bxh4 {[%clk 0:01:18]} 28. gxh4 {[%clk 0:00:38]}  Rxh4 {[%clk 0:01:17]} 29. Kh1 {[%clk 0:00:38]}  Rg4 {[%clk 0:01:13]} 30. Rg1 {[%clk 0:00:34]}  Rxg1+ {[%clk 0:01:12]} 31. Kxg1 {[%clk 0:00:35]}  Kf7 {[%clk 0:01:10]} 32. Qh5+ {[%clk 0:00:34]}  Kg8 {[%clk 0:01:07]} 33. Nf4 {[%clk 0:00:31]}  Nf6 {[%clk 0:00:44]} 34. Qg5 {[%clk 0:00:25]}  e5 {[%clk 0:00:38]} 35. Ng6 {[%clk 0:00:24]}  Qe6 {[%clk 0:00:35]} 36. Qh4 {[%clk 0:00:22]}  Kf7 {[%clk 0:00:35]} 37. Nh8+ {[%clk 0:00:20]}  Rxh8 {[%clk 0:00:32]} 38. Qxh8 {[%clk 0:00:21]}  Ne4 {[%clk 0:00:31]} 39. Qb8 {[%clk 0:00:19]}  Qe7 {[%clk 0:00:31]} 40. Qxa7 {[%clk 0:00:17]}  Qg5+ {[%clk 0:00:29]} 41. Kf1 {[%clk 0:00:17]}  Qh4 {[%clk 0:00:30]} 42. Qxb7+ {[%clk 0:00:17]}  Kg6 {[%clk 0:00:30]} 43. Qa6+ {[%clk 0:00:11]}  Kh7 {[%clk 0:00:28]} 44. Qe2 {[%clk 0:00:11]}  Qxh2 {[%clk 0:00:28]} 45. Ke1 {[%clk 0:00:11]}  Qg1+ {[%clk 0:00:27]} 46. Qf1 {[%clk 0:00:11]}  Qxf1+ {[%clk 0:00:27]} 47. Kxf1 {[%clk 0:00:12]}  Nxc3 {[%clk 0:00:27]} 48. Ke1 {[%clk 0:00:12]}  Kg6 {[%clk 0:00:26]} 49. Kd2 {[%clk 0:00:13]}  Na4 {[%clk 0:00:25]} 50. Kc2 {[%clk 0:00:13]}  Kf6 {[%clk 0:00:24]} 51. Kb3 {[%clk 0:00:14]}  Nb6 {[%clk 0:00:24]} 52. a4 {[%clk 0:00:14]}  Ke6 {[%clk 0:00:24]} 53. a5 {[%clk 0:00:15]}  Nc8 {[%clk 0:00:23]} 54. b5 {[%clk 0:00:16]}  Kd6 {[%clk 0:00:23]} 55. Kb4 {[%clk 0:00:16]}  g5 {[%clk 0:00:23]} 56. a6 {[%clk 0:00:13]}  g4 {[%clk 0:00:21]} 57. Ka5 {[%clk 0:00:12]}  Kc5 {[%clk 0:00:21]} 58. Ka4 {[%clk 0:00:01]}  Kb6 {[%clk 0:00:20]} 59. Kb4 {[%clk 0:00:00]}  Na7 {[%clk 0:00:20]} 0-1


[Site "https://www.chess.com"]